[Event "elllobregat Open Chess TnmT- 2nd Edition 2021"]
[Site "Castelldefels, Spain"]
[Date "2021.12.08"]
[Round "9.5"]
[White "Aditya, Mittal"]
[Black "Yuffa, Daniil"]
[Result "1/2-1/2"]
[TimeControl "90min/40moves + 30min/end + 30sec increment per move starting from move 1"]
[WhiteTitle "IM"]
[BlackTitle "GM"]
[WhiteFideId "35042025"]
[BlackFideId "24131423"]
[WhiteElo "2459"]
[BlackElo "2567"]

1. d4 {[%clk 01:30:56]} {[%emt 00:00:04]} Nf6 {[%clk 01:27:39]} {[%emt
00:03:16]} 2. c4 {[%clk 01:31:23]} {[%emt 00:00:08]} e6 {[%clk 01:28:05]}
{[%emt 00:00:04]} 3. Nf3 {[%clk 01:31:50]} {[%emt 00:00:04]} d5 {[%clk
01:28:29]} {[%emt 00:00:07]} 4. Nc3 {[%clk 01:32:14]} {[%emt 00:00:05]} Be7
{[%clk 01:28:35]} {[%emt 00:00:24]} 5. Bf4 {[%clk 01:32:36]} {[%emt 00:00:08]}
O-O {[%clk 01:28:55]} {[%emt 00:00:10]} 6. e3 {[%clk 01:33:01]} {[%emt
00:00:04]} c5 {[%clk 01:29:19]} {[%emt 00:00:07]} 7. dxc5 {[%clk 01:33:21]}
{[%emt 00:00:10]} Bxc5 {[%clk 01:29:37]} {[%emt 00:00:12]} 8. Qc2 {[%clk
01:33:03]} {[%emt 00:00:49]} Nc6 {[%clk 01:28:53]} {[%emt 00:01:13]} 9. Rd1
{[%clk 01:32:31]} {[%emt 00:01:02]} Qa5 {[%clk 01:19:23]} {[%emt 00:10:01]} 10.
a3 {[%clk 01:32:41]} {[%emt 00:00:21]} Re8 {[%clk 01:15:21]} {[%emt 00:04:31]}
11. Nd2 {[%clk 01:31:30]} {[%emt 00:01:41]} e5 {[%clk 01:14:06]} {[%emt
00:01:44]} 12. Bg5 {[%clk 01:30:20]} {[%emt 00:01:40]} Nd4 {[%clk 01:14:17]}
{[%emt 00:00:19]} 13. Qb1 {[%clk 01:30:09]} {[%emt 00:00:42]} Bf5 {[%clk
01:10:34]} {[%emt 00:04:12]} 14. Bd3 {[%clk 01:30:28]} {[%emt 00:00:11]} Bxd3
{[%clk 01:08:19]} {[%emt 00:02:45]} 15. Qxd3 {[%clk 01:30:56]} {[%emt
00:00:03]} Ne4 {[%clk 01:08:05]} {[%emt 00:00:43]} 16. Nxd5 {[%clk 01:31:01]}
{[%emt 00:00:25]} Nxg5 {[%clk 01:06:34]} {[%emt 00:02:01]} 17. b4 {[%clk
01:31:19]} {[%emt 00:00:12]} Qd8 {[%clk 01:05:38]} {[%emt 00:01:26]} 18. bxc5
{[%clk 01:31:43]} {[%emt 00:00:06]} Nde6 {[%clk 01:04:52]} {[%emt 00:01:15]} 19.
O-O {[%clk 01:31:32]} {[%emt 00:00:42]} Nxc5 {[%clk 01:05:01]} {[%emt
00:00:21]} 20. Qc2 {[%emt 00:05:52]} Rc8 {[%emt 00:07:30]} 21. h4 {[%clk
01:15:19]} {[%emt 00:10:40]} Nge6 {[%clk 00:57:38]} {[%emt 00:01:34]} 22. g3
{[%emt 00:15:03]} Qa5 {[%clk 00:35:08]} {[%emt 00:08:18]} 23. Rb1 {[%clk
01:04:54]} {[%emt 00:11:04]} Qxa3 {[%emt 00:16:18]} 24. Ra1 {[%clk 00:56:23]}
{[%emt 00:04:13]} Qd3 {[%clk 00:24:25]} {[%emt 00:00:11]} 25. Qxd3 {[%clk
00:56:47]} {[%emt 00:00:07]} Nxd3 {[%clk 00:24:51]} {[%emt 00:00:03]} 26. Rxa7
{[%clk 00:57:11]} {[%emt 00:00:07]} Nec5 {[%clk 00:24:29]} {[%emt 00:00:53]} 27.
e4 {[%emt 00:10:22]} Ra8 {[%clk 00:19:40]} {[%emt 00:00:22]} 28. Rfa1 {[%clk
00:52:27]} {[%emt 00:00:18]} Rxa7 {[%clk 00:19:49]} {[%emt 00:00:22]} 29. Rxa7
{[%clk 00:52:54]} {[%emt 00:00:03]} h5 {[%clk 00:19:26]} {[%emt 00:00:52]} 30.
Kf1 {[%clk 00:51:15]} {[%emt 00:02:10]} Re6 {[%emt 00:13:45]} 31. Ra8+ {[%clk
00:34:00]} {[%emt 00:04:18]} Kh7 {[%clk 00:20:04]} {[%emt 00:00:03]} 32. Ke2
{[%clk 00:32:04]} {[%emt 00:02:26]} Ra6 {[%clk 00:19:23]} {[%emt 00:01:12]} 33.
Nc7 {[%clk 00:31:18]} {[%emt 00:01:17]} Rxa8 {[%clk 00:14:14]} {[%emt
00:05:38]} 34. Nxa8 {[%clk 00:31:45]} {[%emt 00:00:02]} f6 {[%clk 00:14:04]}
{[%emt 00:00:41]} 35. Nb6 {[%clk 00:29:54]} {[%emt 00:02:22]} Nb2 {[%emt
00:02:56]} 36. f4 {[%clk 00:25:09]} {[%emt 00:05:02]} Kg6 {[%clk 00:10:12]}
{[%emt 00:02:08]} 37. Nd5 {[%clk 00:16:25]} {[%emt 00:09:15]} Kf7 {[%clk
00:09:54]} {[%emt 00:00:47]} 38. Ke3 {[%clk 00:16:03]} {[%emt 00:00:52]} Ke6
{[%clk 00:09:59]} {[%emt 00:00:25]} 39. Kf3 {[%emt 00:02:25]} Kd6 {[%emt
00:08:15]} 40. g4 {[%clk 00:31:28]} {[%emt 00:06:46]} hxg4+ {[%clk 00:38:46]}
{[%emt 00:00:23]} 41. Kxg4 {[%clk 00:31:56]} {[%emt 00:00:02]} exf4 {[%emt
00:06:11]} 42. Kxf4 {[%clk 00:29:36]} {[%emt 00:02:50]} Ke6 {[%clk 00:29:22]}
{[%emt 00:04:14]} 43. Ke3 {[%clk 00:28:46]} {[%emt 00:01:20]} Kf7 {[%clk
00:28:26]} {[%emt 00:01:25]} 44. Kd4 {[%clk 00:21:26]} {[%emt 00:07:51]} Ne6+
{[%clk 00:28:40]} {[%emt 00:00:16]} 45. Kc3 {[%emt 00:04:37]} Na4+ {[%clk
00:23:54]} {[%emt 00:01:02]} 46. Kb4 {[%clk 00:22:00]} {[%emt 00:00:04]} Nac5
{[%clk 00:24:14]} {[%emt 00:00:11]} 47. h5 {[%clk 00:19:45]} {[%emt 00:02:45]}
Nd7 {[%clk 00:22:07]} {[%emt 00:02:36]} 48. Nb3 {[%clk 00:15:08]} {[%emt
00:05:08]} Ng5 {[%clk 00:18:53]} {[%emt 00:03:43]} 49. Na5 {[%clk 00:14:52]}
{[%emt 00:00:45]} b6 {[%clk 00:18:23]} {[%emt 00:01:00]} 50. Nc6 {[%clk
00:14:53]} {[%emt 00:00:29]} Nxe4 {[%clk 00:18:24]} {[%emt 00:00:30]} 51. Nd8+
{[%clk 00:15:15]} {[%emt 00:00:08]} Kg8 {[%clk 00:17:16]} {[%emt 00:01:37]} 52.
Kb5 {[%emt 00:01:52]} Nd2 {[%clk 00:09:51]} {[%emt 00:07:55]} 53. Ne7+ {[%clk
00:10:06]} {[%emt 00:04:18]} Kh7 {[%emt 00:01:48]} 54. Nf5 {[%clk 00:08:46]}
{[%emt 00:01:23]} Nf8 {[%clk 00:09:14]} {[%emt 00:00:15]} 55. Nf7 {[%clk
00:04:48]} {[%emt 00:04:28]} Nd7 {[%clk 00:06:32]} {[%emt 00:03:12]} 56. Nd8
{[%clk 00:05:04]} {[%emt 00:00:14]} g5 {[%clk 00:04:30]} {[%emt 00:02:31]} 57.
hxg6+ {[%clk 00:05:32]} {[%emt 00:00:02]} Kxg6 {[%clk 00:04:55]} {[%emt
00:00:05]} 58. Ne7+ {[%clk 00:05:57]} {[%emt 00:00:05]} Kh5 {[%clk 00:05:04]}
{[%emt 00:00:20]} 59. Nf7 {[%emt 00:01:21]} Ne5 {[%clk 00:04:44]} {[%emt
00:00:48]} 60. Nd6 {[%clk 00:04:55]} {[%emt 00:00:43]} Kg4 {[%clk 00:04:44]}
{[%emt 00:00:30]} 61. Nd5 {[%clk 00:05:13]} {[%emt 00:00:12]} Ndxc4 {[%clk
00:04:55]} {[%emt 00:00:19]} 62. Nxf6+ {[%clk 00:05:31]} {[%emt 00:00:12]} Kg5
{[%clk 00:05:18]} {[%emt 00:00:06]} 63. Nxc4 {[%clk 00:05:57]} {[%emt
00:00:06]} Nxc4 {[%clk 00:05:45]} {[%emt 00:00:03]} 64. Kxc4 {[%clk 00:06:21]}
{[%emt 00:00:06]} Kxf6 {[%clk 00:06:13]} {[%emt 00:00:02]} 65. Kb5 {[%clk
00:06:46]} {[%emt 00:00:06]} Ke5 {[%clk 00:06:42]} {[%emt 00:00:01]} 66. Kxb6
{[%clk 00:07:14]} {[%emt 00:00:02]} 1/2-1/2

[Event "elllobregat Open Chess TnmT- 2nd Edition 2021"]
[Site "Castelldefels, Spain"]
[Date "2021.12.08"]
[Round "9.6"]
[White "Van Foreest, Lucas"]
[Black "Meshkovs, Nikita"]
[Result "1/2-1/2"]
[TimeControl "90min/40moves + 30min/end + 30sec increment per move starting from move 1"]
[WhiteTitle "GM"]
[BlackTitle "GM"]
[WhiteFideId "1039792"]
[BlackFideId "11602740"]
[WhiteElo "2532"]
[BlackElo "2557"]

1. e4 {[%clk 01:25:53]} {[%emt 00:02:23]} e5 {[%clk 01:30:50]} {[%emt
00:00:10]} 2. Nf3 {[%clk 01:26:17]} {[%emt 00:00:07]} Nc6 {[%clk 01:31:10]}
{[%emt 00:00:09]} 3. d4 {[%clk 01:26:46]} {[%emt 00:00:02]} exd4 {[%clk
01:31:00]} {[%emt 00:00:38]} 4. Nxd4 {[%clk 01:27:15]} Bc5 {[%clk 01:30:40]}
{[%emt 00:00:52]} 5. Nb3 {[%clk 01:27:38]} {[%emt 00:00:07]} Bb6 {[%clk
01:31:05]} {[%emt 00:00:05]} 6. Qe2 {[%clk 01:28:05]} {[%emt 00:00:03]} d6
{[%clk 01:30:01]} {[%emt 00:01:33]} 7. Nc3 {[%clk 01:28:19]} {[%emt 00:00:17]}
Nf6 {[%clk 01:30:24]} {[%emt 00:00:06]} 8. Be3 {[%emt 00:12:36]} Qe7 {[%clk
01:18:05]} {[%emt 00:00:27]} 9. O-O-O {[%emt 00:03:27]} Be6 {[%clk 01:13:16]}
{[%emt 00:03:11]} 10. g3 {[%emt 00:02:25]} O-O {[%emt 00:14:24]} 11. Bg2 {[%emt
00:10:28]} Ng4 {[%emt 00:01:17]} 12. Bxb6 {[%clk 01:11:54]} {[%emt 00:00:22]}
axb6 {[%emt 00:02:57]} 13. f4 {[%emt 00:10:31]} Nf6 {[%emt 00:04:55]} 14. Bf3
{[%emt 00:02:05]} Nd7 {[%emt 00:01:46]} 15. Rhe1 {[%emt 00:03:23]} Rfe8 {[%emt
00:03:31]} 16. Kb1 {[%emt 00:03:12]} Qf6 {[%emt 00:09:59]} 17. Qd2 {[%emt
00:03:42]} Nc5 {[%emt 00:18:43]} 18. Nxc5 {[%clk 00:34:33]} {[%emt 00:00:48]}
bxc5 {[%emt 00:11:20]} 19. Bg2 {[%emt 00:07:13]} Bg4 {[%clk 00:34:05]} {[%emt
00:00:04]} 20. Rc1 {[%emt 00:12:14]} Qd4 {[%emt 00:02:04]} 21. Qxd4 {[%clk
00:22:22]} {[%emt 00:00:30]} Nxd4 {[%emt 00:00:22]} 22. Nd5 {[%clk 00:21:15]}
{[%emt 00:01:19]} Rac8 {[%emt 00:03:53]} 23. c3 {[%clk 00:19:06]} {[%emt
00:00:12]} Nf3 {[%emt 00:01:45]} 24. Re3 {[%emt 00:04:00]} Nd2+ {[%clk
00:17:02]} {[%emt 00:01:49]} 25. Kc2 {[%clk 00:17:48]} {[%emt 00:00:27]} Nc4
{[%clk 00:17:30]} {[%emt 00:00:02]} 26. Ree1 {[%emt 00:06:59]} c6 {[%clk
00:10:53]} {[%emt 00:00:23]} 27. Ne3 {[%clk 00:18:04]} {[%emt 00:00:29]} Nxe3+
{[%clk 00:11:19]} {[%emt 00:00:05]} 28. Rxe3 {[%clk 00:18:31]} {[%emt
00:00:03]} Kf8 {[%clk 00:11:12]} {[%emt 00:00:36]} 29. Rce1 {[%emt 00:02:19]}
Ke7 {[%emt 00:02:42]} 30. Rd3 {[%clk 00:13:41]} {[%emt 00:02:26]} f6 {[%emt
00:02:21]} 31. a3 {[%clk 00:11:02]} {[%emt 00:01:16]} Rcd8 {[%clk 00:09:12]}
{[%emt 00:01:26]} 32. Rd2 {[%emt 00:01:17]} Kd7 {[%emt 00:04:16]} 33. b4 {[%emt
00:02:17]} 1/2-1/2

[Event "elllobregat Open Chess TnmT- 2nd Edition 2021"]
[Site "Castelldefels, Spain"]
[Date "2021.12.08"]
[Round "9.7"]
[White "Ponomariov, Ruslan"]
[Black "Arjun, Kalyan"]
[Result "1/2-1/2"]
[TimeControl "90min/40moves + 30min/end + 30sec increment per move starting from move 1"]
[WhiteTitle "GM"]
[BlackTitle "GM"]
[WhiteFideId "14103320"]
[BlackFideId "35018701"]
[WhiteElo "2633"]
[BlackElo "2537"]

1. e4 {[%clk 01:30:57]} {[%emt 00:00:01]} e5 {[%clk 01:30:53]} {[%emt
00:00:07]} 2. Nf3 {[%clk 01:31:18]} {[%emt 00:00:09]} Nc6 {[%emt 00:00:19]} 3.
Bc4 {[%emt 00:00:06]} Bc5 {[%emt 00:00:31]} 4. d3 {[%clk 01:31:28]} {[%emt
00:00:05]} Nf6 {[%emt 00:00:57]} 5. O-O {[%clk 01:30:28]} {[%emt 00:00:39]} d6
{[%emt 00:00:44]} 6. c3 {[%emt 00:00:17]} O-O {[%emt 00:05:39]} 7. Bg5 {[%emt
00:00:18]} h6 {[%clk 01:32:43]} {[%emt 00:00:21]} 8. Bh4 {[%emt 00:01:03]} g5
{[%clk 01:31:58]} {[%emt 00:00:16]} 9. Bg3 {[%emt 00:04:55]} Bg4 {[%emt
00:25:43]} 10. Nbd2 {[%emt 00:02:28]} a6 {[%emt 00:02:49]} 11. a4 {[%emt
00:01:09]} Ba7 {[%emt 00:03:06]} 12. Kh1 {[%emt 00:04:28]} Nh7 {[%emt
00:13:25]} 13. Qc2 {[%emt 00:03:21]} Qf6 {[%emt 00:10:43]} 14. h3 {[%emt
00:06:44]} Bd7 {[%emt 00:02:56]} 15. b4 {[%emt 00:03:14]} Ne7 {[%emt 00:02:46]}
16. d4 {[%clk 00:27:05]} {[%emt 00:00:52]} Ng6 {[%emt 00:01:33]} 17. Be2 {[%emt
00:07:03]} h5 {[%emt 00:01:18]} 18. Nc4 {[%emt 00:00:18]} Rae8 {[%clk
01:03:00]} {[%emt 00:00:10]} 19. Rad1 {[%emt 00:06:37]} Bc8 {[%emt 00:00:53]}
20. Ne3 {[%emt 00:01:24]} c6 {[%emt 00:05:01]} 21. Nc4 {[%emt 00:07:56]} g4
{[%emt 00:00:26]} 22. hxg4 {[%emt 00:00:28]} Bxg4 {[%emt 00:03:18]} 23. dxe5
{[%clk 00:18:14]} {[%emt 00:00:02]} dxe5 {[%emt 00:00:30]} 24. Nd6 {[%emt
00:15:44]} Rd8 {[%emt 00:02:53]} 25. Nf5 {[%emt 00:07:50]} Bxf3 {[%emt
00:01:11]} 26. Bxf3 {[%clk 00:15:27]} {[%emt 00:00:52]} h4 {[%clk 00:25:45]}
{[%emt 00:00:10]} 27. Bh2 {[%emt 00:00:22]} Rxd1 {[%emt 00:00:41]} 28. Rxd1
{[%clk 00:15:18]} {[%emt 00:00:32]} Rd8 {[%emt 00:01:57]} 29. Bh5 {[%clk
00:05:11]} {[%emt 00:00:39]} Nhf8 30. Rxd8 {[%emt 00:10:08]} Qxd8 {[%emt
00:00:10]} 31. g3 {[%emt 00:06:47]} Qg5 {[%emt 00:01:46]} 32. Bxg6 {[%clk
00:03:15]} {[%emt 00:00:11]} Nxg6 {[%emt 00:00:35]} 33. gxh4 {[%emt 00:00:32]}
Nxh4 {[%emt 00:00:05]} 34. Nxh4 {[%clk 00:03:25]} Qxh4 {[%clk 00:21:17]} {[%emt
00:00:04]} 35. Kg2 {[%emt 00:03:03]} Qg4+ {[%clk 00:17:45]} {[%emt 00:01:03]}
36. Bg3 {[%emt 00:00:59]} Kf8 {[%clk 00:17:08]} {[%emt 00:00:13]} 37. Qd3
{[%clk 00:04:42]} {[%emt 00:00:06]} Ke7 {[%emt 00:00:42]} 38. b5 {[%clk
00:04:32]} {[%emt 00:00:10]} axb5 39. axb5 f6 {[%emt 00:00:53]} 40. bxc6 {[%clk
00:34:22]} {[%emt 00:00:24]} bxc6 {[%emt 00:00:54]} 41. Qc4 {[%emt 00:01:22]}
Qe6 {[%emt 00:10:49]} 42. Qb4+ {[%clk 00:25:07]} {[%emt 00:00:08]} Qd6 {[%clk
00:45:21]} {[%emt 00:00:17]} 43. Qb7+ {[%clk 00:25:34]} {[%emt 00:00:04]} Qd7
{[%clk 00:45:47]} {[%emt 00:00:04]} 44. Qb4+ {[%clk 00:25:45]} {[%emt
00:00:19]} Qd6 {[%clk 00:46:15]} {[%emt 00:00:02]} 45. Qb7+ {[%clk 00:26:10]}
{[%emt 00:00:05]} Qd7 {[%clk 00:46:42]} {[%emt 00:00:04]} 46. Qa6 {[%emt
00:00:19]} Bc5 {[%clk 00:46:36]} {[%emt 00:00:31]} 47. Qc4 {[%emt 00:00:27]}
Ba7 {[%emt 00:03:15]} 48. Qg8 {[%clk 00:25:25]} {[%emt 00:00:29]} Qe6 {[%clk
00:44:57]} {[%emt 00:00:27]} 49. Qh7+ {[%clk 00:25:37]} {[%emt 00:00:18]} Qf7
{[%emt 00:00:04]} 50. Qf5 {[%clk 00:25:58]} {[%emt 00:00:07]} Qe6 {[%emt
00:00:42]} 51. Kf3 {[%emt 00:01:28]} Bb6 {[%clk 00:43:16]} {[%emt 00:04:37]} 52.
Bh4 Qxf5+ 53. exf5 {[%clk 00:20:23]} Ba5 {[%clk 00:43:40]} {[%emt 00:00:06]} 54.
c4 {[%emt 00:00:37]} Bd8 {[%emt 00:00:44]} 55. Ke4 {[%clk 00:20:42]} {[%emt
00:00:10]} Kd6 {[%clk 00:43:35]} {[%emt 00:00:15]} 56. f3 {[%clk 00:21:07]}
{[%emt 00:00:05]} Kc5 {[%clk 00:43:28]} {[%emt 00:00:37]} 57. Kd3 {[%clk
00:21:34]} {[%emt 00:00:04]} Kb4 {[%clk 00:43:25]} {[%emt 00:00:33]} 58. Be1+
{[%clk 00:21:42]} {[%emt 00:00:21]} Kb3 {[%clk 00:43:45]} {[%emt 00:00:09]} 59.
Bf2 {[%emt 00:00:17]} Kb4 {[%emt 00:00:09]} 60. Be3 {[%emt 00:00:25]} Be7
{[%emt 00:00:15]} 61. Bd2+ {[%clk 00:22:37]} {[%emt 00:00:02]} Kb3 {[%clk
00:44:30]} {[%emt 00:00:10]} 62. Ba5 {[%clk 00:22:40]} {[%emt 00:00:28]} Ka4
{[%emt 00:00:53]} 63. Be1 {[%clk 00:22:05]} {[%emt 00:00:15]} Kb3 {[%clk
00:45:22]} {[%emt 00:00:05]} 64. Bd2 {[%emt 00:00:25]} Bd8 {[%clk 00:45:38]}
{[%emt 00:00:03]} 65. Be1 {[%clk 00:22:37]} {[%emt 00:00:13]} Be7 {[%emt
00:00:05]} 66. Ba5 {[%clk 00:22:57]} {[%emt 00:00:06]} 1/2-1/2

[Event "elllobregat Open Chess TnmT- 2nd Edition 2021"]
[Site "Castelldefels, Spain"]
[Date "2021.12.08"]
[Round "9.8"]
[White "Puranik, Abhimanyu"]
[Black "Vetoshko, Volodymyr"]
[Result "1-0"]
[TimeControl "90min/40moves + 30min/end + 30sec increment per move starting from move 1"]
[WhiteTitle "GM"]
[BlackTitle "GM"]
[WhiteFideId "5061245"]
[BlackFideId "14122480"]
[WhiteElo "2604"]
[BlackElo "2525"]

1. Nf3 {[%clk 01:29:34]} {[%emt 00:01:25]} d5 {[%clk 01:30:20]} {[%emt
00:00:40]} 2. c4 {[%clk 01:29:19]} {[%emt 00:00:44]} e6 {[%clk 01:28:36]}
{[%emt 00:02:15]} 3. g3 {[%clk 01:29:03]} {[%emt 00:00:46]} Nf6 {[%clk
01:27:16]} {[%emt 00:01:49]} 4. Bg2 {[%clk 01:28:59]} {[%emt 00:00:34]} Be7
{[%clk 01:26:01]} {[%emt 00:01:45]} 5. O-O {[%clk 01:27:53]} {[%emt 00:01:37]}
O-O {[%clk 01:26:24]} {[%emt 00:00:07]} 6. b3 {[%clk 01:28:13]} {[%emt
00:00:09]} d4 {[%clk 01:26:30]} {[%emt 00:00:25]} 7. e3 {[%clk 01:28:31]}
{[%emt 00:00:11]} c5 {[%clk 01:26:40]} {[%emt 00:00:20]} 8. exd4 {[%clk
01:28:49]} {[%emt 00:00:13]} cxd4 {[%clk 01:27:09]} 9. Ne5 {[%clk 01:29:06]}
{[%emt 00:00:12]} Nbd7 {[%clk 01:17:23]} {[%emt 00:10:16]} 10. Nxd7 {[%clk
01:27:08]} {[%emt 00:02:28]} Nxd7 {[%clk 01:16:54]} {[%emt 00:00:59]} 11. d3
{[%clk 01:25:42]} {[%emt 00:01:57]} e5 {[%clk 01:07:29]} {[%emt 00:09:55]} 12.
Re1 {[%clk 01:15:31]} {[%emt 00:10:40]} f6 {[%clk 01:02:43]} {[%emt 00:05:16]}
13. a3 {[%clk 01:13:34]} {[%emt 00:02:26]} a5 {[%clk 01:02:53]} {[%emt
00:00:20]} 14. Nd2 {[%clk 01:13:27]} {[%emt 00:00:37]} Nc5 {[%clk 00:57:33]}
{[%emt 00:05:49]} 15. Ne4 {[%clk 01:12:11]} {[%emt 00:01:48]} Ne6 {[%clk
00:57:51]} {[%emt 00:00:12]} 16. Rb1 {[%clk 01:04:13]} {[%emt 00:08:28]} Bd7
{[%clk 00:52:59]} {[%emt 00:05:22]} 17. b4 {[%clk 01:01:48]} {[%emt 00:02:55]}
axb4 {[%clk 00:48:45]} {[%emt 00:04:44]} 18. axb4 {[%clk 01:02:17]} {[%emt
00:00:01]} Kh8 {[%clk 00:39:33]} {[%emt 00:09:42]} 19. Nd2 {[%clk 00:45:34]}
{[%emt 00:17:13]} Bc6 {[%clk 00:31:26]} {[%emt 00:08:38]} 20. f4 {[%clk
00:40:27]} {[%emt 00:05:36]} Bxg2 {[%clk 00:28:13]} {[%emt 00:03:44]} 21. Kxg2
{[%clk 00:40:53]} {[%emt 00:00:04]} Ra2 {[%clk 00:27:13]} {[%emt 00:01:31]} 22.
fxe5 {[%clk 00:32:08]} {[%emt 00:09:15]} fxe5 {[%clk 00:17:22]} {[%emt
00:10:21]} 23. Re2 {[%clk 00:25:10]} {[%emt 00:07:26]} b5 {[%clk 00:14:27]}
{[%emt 00:03:27]} 24. c5 {[%clk 00:19:20]} {[%emt 00:06:20]} Ng5 {[%clk
00:06:59]} {[%emt 00:07:57]} 25. Ne4 {[%clk 00:19:25]} {[%emt 00:00:25]} Nxe4
{[%clk 00:06:25]} {[%emt 00:01:04]} 26. dxe4 {[%clk 00:19:53]} {[%emt
00:00:01]} Qa8 {[%clk 00:05:34]} {[%emt 00:01:21]} 27. Qd3 {[%clk 00:18:41]}
{[%emt 00:01:42]} Rxe2+ {[%clk 00:04:49]} {[%emt 00:01:15]} 28. Qxe2 {[%clk
00:19:10]} {[%emt 00:00:01]} h6 {[%clk 00:03:24]} {[%emt 00:01:56]} 29. h4
{[%clk 00:18:15]} {[%emt 00:01:24]} Qa4 {[%clk 00:02:50]} {[%emt 00:01:05]} 30.
Bd2 {[%clk 00:15:57]} {[%emt 00:02:43]} Qa2 {[%clk 00:01:30]} {[%emt 00:01:54]}
31. Rc1 {[%clk 00:16:15]} {[%emt 00:00:12]} Qb3 {[%clk 00:00:59]} {[%emt
00:01:01]} 32. c6 {[%clk 00:12:50]} {[%emt 00:03:55]} Bd6 {[%clk 00:00:34]}
{[%emt 00:00:56]} 33. c7 {[%clk 00:11:01]} {[%emt 00:02:20]} Rc8 {[%clk
00:00:34]} {[%emt 00:00:29]} 34. Rc6 {[%clk 00:08:44]} {[%emt 00:02:47]} Rxc7
{[%clk 00:00:31]} {[%emt 00:00:34]} 35. Rxd6 {[%clk 00:09:05]} {[%emt
00:00:08]} Qa2 {[%clk 00:00:31]} {[%emt 00:00:31]} 36. Kh3 {[%clk 00:08:08]}
{[%emt 00:01:26]} Rf7 {[%clk 00:00:33]} {[%emt 00:00:29]} 37. Rc6 {[%clk
00:06:06]} {[%emt 00:02:23]} Rf8 {[%clk 00:00:31]} {[%emt 00:00:41]} 38. h5
{[%clk 00:06:12]} {[%emt 00:00:23]} Qf7 {[%clk 00:00:31]} {[%emt 00:00:31]} 39.
Rc1 {[%clk 00:05:31]} {[%emt 00:01:11]} Qa2 {[%clk 00:00:35]} {[%emt 00:00:27]}
40. Rc7 {[%clk 00:33:52]} {[%emt 00:02:08]} Qb1 {[%emt 00:00:35]} 1-0